bitfinex-derivatives/quotes_ETHF0:USTF0_20260120
["timestamp","ask_amount","ask_price","bid_price","bid_amount"]
[1768906500039,0.14579808,3103.3,3102.1,5.23920163]
[1768906500334,0.16125,3103.6,3102.2,4.01933315]
[1768906500539,0.16125,3103.6,3102.4,1.21986848]
[1768906506537,0.16125,3103.6,3102.3,0.13799747]
[1768906506538,0.16125,3103.6,3102.3,1.35786595]
[1768906508546,1.21986848,3103.8,3102.3,1.35786595]
[1768906508942,1.21986848,3103.8,3102.4,1.21986848]
[1768906512054,0.14579808,3103.9,3102.4,1.21986848]
[1768906512245,0.14579808,3103.9,3102.5,0.13799747]
[1768906512442,0.16123,3104.1,3102.3,4.01933315]
[1768906512443,0.16123,3104.1,3102.8,0.13799747]
[1768906513239,0.30702808,3104.1,3102.7,1.21986848]
[1768906514150,0.14579808,3103.9,3102.7,1.21986848]
[1768906514346,0.30703808,3103.9,3102.4,5.3771991]
[1768906514550,0.30703808,3103.9,3102.1,0.16133]
[1768906514551,1.36566656,3103.7,3102.3,4.01933315]
[1768906515750,0.14579808,3103.6,3102.3,4.01933315]
[1768906518247,0.16124,3103.8,3102.4,1.35786595]
[1768906522050,0.16124,3103.8,3102.5,0.13799747]
[1768906525045,0.14579808,3104.0,3102.5,0.13799747]
[1768906526949,0.14579808,3104.0,3102.4,4.01933315]
[1768906527250,0.14579808,3104.0,3102.3,4.01933315]
[1768906527952,0.14579808,3104.0,3102.4,4.01933315]
[1768906528552,0.30702808,3104.0,3102.4,4.01933315]
[1768906528853,0.14359554,3103.9,3102.4,4.01933315]
[1768906531154,0.14359554,3103.9,3102.4,4.16320078]
[1768906531451,0.16123,3104.0,3102.5,0.14386763]
[1768906542663,0.30482554,3104.0,3102.5,0.14386763]
[1768906544858,0.13642718,3103.9,3102.5,0.14386763]
[1768906546362,0.13642718,3103.9,3102.4,4.01933315]
[1768906550163,0.13642718,3103.9,3102.4,4.15236608]
[1768906552965,0.16123,3104.0,3102.5,0.13303293]
[1768906553167,0.16123,3104.0,3102.6,4.165602]
[1768906553466,0.13642718,3104.3,3102.6,4.165602]
[1768906556277,0.13642718,3104.3,3102.7,0.14626885]
[1768906556470,0.1612,3104.5,3102.7,0.14626885]
[1768906556971,0.30326685,3104.5,3102.8,0.14626885]
[1768906557872,0.14206685,3104.4,3102.8,0.14626885]
[1768906558074,0.14206685,3104.4,3102.9,4.01933315]
[1768906558377,0.14206685,3104.4,3102.8,4.165602]
[1768906560984,0.14206685,3104.4,3102.8,4.01933315]
[1768906561484,0.30327685,3104.4,3102.8,4.01933315]
[1768906561685,0.14206685,3104.3,3102.7,4.01933315]
[1768906562583,0.14206685,3104.1,3102.7,4.01933315]
[1768906562884,0.14206685,3104.1,3102.5,4.01933315]
[1768906565091,0.30329685,3104.1,3102.5,4.01933315]
[1768906566192,0.16123,3104.1,3102.6,0.14626885]
[1768906568095,0.16123,3104.1,3102.7,0.14626885]
[1768906569097,0.16123,3104.1,3102.8,0.14626885]
[1768906571096,0.14206685,3104.4,3102.8,0.14626885]
[1768906578595,0.14560875,3104.9,3103.0,0.14626885]
[1768906578797,0.14560875,3104.9,3103.3,1.21997553]
[1768906581602,0.14560875,3104.9,3103.3,1.36624438]
[1768906582697,0.30678875,3104.9,3103.3,0.14626885]
[1768906583604,0.29411897,3104.8,3103.3,0.14626885]
[1768906583904,0.13292897,3104.7,3103.3,0.14626885]
[1768906584905,0.13292897,3104.7,3103.4,1.219332]
[1768906588903,1.2228739,3104.9,3103.7,1.219332]
[1768906588904,0.0035419,3104.9,3103.7,1.219332]
[1768906589107,0.0035419,3104.9,3103.7,1.22248795]
[1768906595015,0.0035419,3104.9,3103.7,1.35486586]
[1768906598517,0.0035419,3104.9,3104.0,1.219332]
[1768906598712,0.0035419,3104.9,3103.7,1.22248795]
[1768906599111,0.0035419,3104.9,3103.7,0.00315595]
[1768906601823,0.0035419,3104.9,3103.8,1.219332]
[1768906602016,0.0035419,3104.9,3103.8,1.35170991]
[1768906602623,0.0035419,3104.9,3103.8,1.219332]
[1768906604418,0.30667584,3104.9,3103.7,0.00315595]
[1768906604619,0.30313394,3104.8,3103.7,0.00315595]
[1768906604919,0.14194394,3104.7,3103.7,0.00315595]
[1768906605110,1.36127594,3104.7,3103.7,0.00315595]
[1768906605317,1.52246594,3104.7,3103.7,0.00315595]
[1768906608219,1.36127594,3104.4,3103.7,0.00315595]
[1768906608524,0.14194394,3104.4,3103.7,0.00315595]
[1768906609019,0.14194394,3106.2,3104.4,0.13904205]
[1768906609212,0.14194394,3105.6,3104.1,0.721]
[1768906609411,0.14194394,3105.3,3103.9,4.01933315]
[1768906609611,0.14194394,3105.3,3103.7,0.00315595]
[1768906609815,0.14194394,3105.1,3103.7,2.44515595]
[1768906610012,0.1454337,3105.1,3103.7,0.00315595]
[1768906610326,0.1454337,3105.1,3103.8,1.219332]
[1768906612825,0.00348976,3105.1,3104.1,1.219332]
[1768906613024,0.00348976,3105.1,3104.4,1.219332]
[1768906613225,0.00348976,3105.1,3103.7,0.142198]
[1768906613427,0.00348976,3105.1,3103.9,1.219332]
[1768906614827,0.00348976,3105.1,3104.0,1.219332]
[1768906615526,0.00348976,3105.1,3104.3,1.219332]
[1768906619933,0.00348976,3105.1,3104.1,1.219332]
[1768906623425,0.00348976,3105.1,3103.8,4.01933315]
[1768906623426,0.14774101,3105.1,3103.8,4.01933315]
[1768906623730,0.14774101,3105.1,3103.9,1.219332]
[1768906624235,0.00348976,3105.1,3104.2,1.219332]
[1768906627840,0.00348976,3105.1,3104.5,1.219332]
[1768906628741,0.16116,3105.3,3104.5,1.219332]
[1768906628943,0.30538125,3105.9,3104.5,1.219332]
[1768906629640,0.30907023,3105.9,3104.8,1.219332]
[1768906631543,0.30907023,3105.9,3104.5,1.219332]
[1768906634141,0.30907023,3105.9,3104.5,1.35212304]
[1768906636347,0.16114,3105.8,3104.5,1.35212304]
[1768906639547,0.16114,3105.8,3104.6,0.13279104]
[1768906641443,0.16114,3105.8,3104.8,1.219332]
[1768906641747,0.00368898,3105.9,3104.8,1.219332]
[1768906644954,0.00368898,3105.9,3104.6,4.15212419]
[1768906646153,0.00368898,3105.9,3104.7,0.13462346]
[1768906654548,0.00368898,3105.9,3104.7,4.15395661]
[1768906655852,0.00368898,3105.9,3104.8,0.13462346]
[1768906660965,0.14489277,3105.9,3104.7,4.01933315]
[1768906661160,0.14489277,3105.9,3104.6,4.01933315]
[1768906661562,0.14489277,3105.9,3104.5,6.44933315]
[1768906662365,0.14489277,3105.9,3104.6,4.01933315]
[1768906672371,0.30602277,3105.9,3104.6,4.01933315]
[1768906677080,0.16481898,3105.9,3104.6,4.16161627]
[1768906677381,0.16481898,3105.9,3104.7,4.16161627]
[1768906678085,0.16481898,3105.9,3104.7,4.01933315]
[1768906678384,0.3046055,3105.9,3104.7,4.01933315]
[1768906678682,0.3046055,3105.9,3104.6,4.01933315]
[1768906679576,0.3046055,3105.9,3104.7,4.01933315]
[1768906681486,0.3046055,3105.9,3104.6,4.01933315]
[1768906682882,0.13978652,3105.8,3104.6,4.01933315]
[1768906684588,0.16481898,3105.9,3104.6,4.01933315]
[1768906684789,0.16481898,3105.9,3104.7,4.01933315]
[1768906691099,0.16114,3105.7,3104.7,4.01933315]
[1768906691591,0.30092652,3105.7,3104.7,4.01933315]
[1768906691789,0.30092652,3105.7,3104.5,4.01933315]
[1768906692491,0.30092652,3105.7,3104.4,4.01933315]
[1768906695797,0.16114,3105.7,3104.4,4.01933315]
[1768906696094,0.16114,3105.7,3104.4,4.16161627]
[1768906696290,0.16114,3105.7,3104.5,0.14228312]
[1768906697994,0.16114,3105.7,3104.4,4.01933315]
[1768906713708,0.29626679,3105.7,3104.4,4.01933315]
[1768906713909,0.13512679,3105.6,3104.3,5.23784758]
[1768906717211,0.16114,3105.7,3104.3,5.37352543]
[1768906717611,0.16114,3105.7,3104.4,0.13567785]
[1768906719217,0.16114,3105.7,3104.4,4.155011]
[1768906721217,0.16114,3105.7,3104.5,4.01933315]
[1768906723215,0.16114,3105.7,3104.4,4.155011]
[1768906724115,0.16114,3105.7,3104.5,4.01933315]
[1768906724715,0.16114,3105.7,3104.4,4.155011]
[1768906724916,0.16114,3105.7,3104.5,4.01933315]
[1768906725317,0.16114,3105.7,3104.4,4.155011]
[1768906725814,0.16114,3105.7,3104.5,4.01933315]
[1768906726715,0.16114,3105.7,3104.5,5.23784758]
[1768906727115,0.16114,3105.7,3104.5,4.01933315]
[1768906727315,0.13737398,3105.6,3104.5,4.01933315]
[1768906727716,1.21851443,3105.4,3104.3,4.01933315]
[1768906728514,1.35588841,3105.4,3104.3,4.01933315]
[1768906728716,0.13737398,3105.4,3104.3,4.01933315]
[1768906731815,0.16114,3105.7,3104.3,4.01933315]
[1768906731816,1.37965443,3105.7,3104.3,4.01933315]
[1768906732522,0.29851398,3105.7,3104.3,4.01933315]
[1768906734922,1.51702841,3105.7,3104.3,4.01933315]
[1768906739831,0.29851398,3105.7,3104.3,4.01933315]
[1768906740125,1.51702841,3105.7,3104.3,4.01933315]
[1768906742429,0.30152212,3105.6,3104.3,4.01933315]
[1768906743924,0.14037212,3105.5,3104.3,4.01933315]
[1768906744124,0.30152212,3105.5,3104.3,4.01933315]
[1768906750333,0.16116,3105.4,3104.3,4.01933315]
[1768906757434,0.16116,3105.3,3104.3,4.01933315]
[1768906758136,0.16116,3105.3,3104.2,4.01933315]
[1768906759838,1.21851443,3105.0,3104.2,4.01933315]
[1768906760340,1.21851443,3105.0,3103.9,6.47033315]
[1768906761534,0.16117,3105.1,3103.9,2.451]
[1768906761941,0.16117,3105.1,3103.8,6.47333315]
[1768906767541,0.16117,3105.1,3103.8,2.454]
[1768906768345,0.29724311,3105.1,3103.8,2.454]
[1768906772747,0.29724311,3105.1,3103.7,8.62334874]
[1768906772748,0.29724311,3105.1,3103.7,4.60401559]
[1768906772947,0.29725311,3105.0,3103.7,0.00315595]
[1768906781653,0.13607311,3104.9,3103.7,0.00315595]
[1768906792258,0.29725311,3104.9,3103.7,0.00315595]
[1768906792656,0.14335751,3104.6,3103.7,0.00315595]
[1768906793061,0.30455751,3104.6,3103.7,0.00315595]
[1768906793258,0.136538,3104.5,3103.7,0.00315595]
[1768906795464,0.136538,3104.4,3103.2,4.01933315]
[1768906795661,0.136538,3104.4,3103.1,4.01933315]
[1768906796363,0.136538,3104.4,3103.0,4.01933315]
[1768906796555,0.136538,3104.4,3103.1,0.00340732]
[1768906797168,0.136538,3104.4,3103.1,4.02274047]
[1768906797659,0.136538,3104.4,3103.1,0.00340732]
[1768906801856,0.297748,3104.4,3103.1,0.00340732]
[1768906802057,0.136538,3104.3,3103.1,0.00340732]
[1768906806262,0.136538,3104.7,3103.1,0.14811962]
[1768906806463,0.136538,3105.1,3103.4,0.1447123]
[1768906806662,0.136538,3105.4,3103.8,0.1447123]
[1768906807069,0.136538,3105.4,3103.9,4.01933315]
[1768906808169,0.136538,3105.4,3103.9,4.16404545]
[1768906808771,0.136538,3105.8,3104.1,1.36371742]
[1768906809071,0.136538,3105.8,3104.2,0.1447123]
[1768906809775,0.297678,3105.8,3104.1,4.01933315]
[1768906809968,0.136538,3105.7,3104.1,4.01933315]
[1768906810975,0.136538,3105.7,3104.0,4.18056315]
[1768906811876,0.136538,3105.7,3104.0,0.16123]
[1768906813393,0.136538,3105.6,3104.0,0.16123]
[1768906815386,0.136538,3105.6,3104.1,2.6017123]
[1768906816782,0.16114,3105.7,3104.2,0.1447123]
[1768906820786,0.00368898,3105.9,3104.5,1.36371742]
[1768906821794,0.00368898,3105.9,3104.5,0.1447123]
[1768906821994,0.14022698,3105.9,3104.5,0.1447123]
[1768906822490,0.14022698,3105.9,3104.3,4.01933315]
[1768906822682,0.14022698,3105.9,3104.4,2.46]
[1768906825591,0.00368898,3105.9,3104.5,1.35997161]
[1768906826195,0.00368898,3105.9,3104.6,0.14096649]
[1768906828995,0.00368898,3105.9,3104.9,1.21817032]
[1768906834191,0.00368898,3105.9,3105.2,1.21817032]
[1768906835599,0.00368898,3105.9,3104.7,0.14096649]
[1768906835790,0.00368898,3105.9,3105.1,1.21817032]
[1768906836601,0.00368898,3105.9,3104.7,0.14096649]
[1768906836799,0.00368898,3105.9,3105.1,1.21817032]
[1768906837200,0.00368898,3105.9,3104.8,1.21817032]
[1768906838192,0.13634659,3105.6,3104.5,4.01933315]
[1768906838503,0.16481898,3105.9,3104.5,5.23750347]
[1768906838704,0.16481898,3105.9,3104.5,1.21817032]
[1768906838895,0.16481898,3105.9,3104.8,1.21817032]
[1768906839401,0.30116557,3105.9,3104.5,1.21817032]
[1768906842301,1.21817032,3105.8,3104.5,1.21817032]
[1768906842607,0.30116557,3105.9,3104.5,1.21817032]
[1768906845002,0.14620788,3105.8,3104.5,1.21817032]
[1768906846805,0.14620788,3105.8,3104.5,5.23750347]
[1768906850007,0.16481898,3105.9,3104.5,5.23750347]
[1768906850699,0.31102686,3105.9,3104.5,5.23750347]
[1768906853504,0.31102686,3105.9,3104.6,1.21817032]
[1768906855010,0.14611692,3105.8,3104.6,1.21817032]
[1768906858712,0.16114,3105.7,3104.5,4.01933315]
[1768906860011,0.16114,3105.7,3104.9,1.21817032]
[1768906861012,0.00368898,3105.9,3104.9,1.21817032]
[1768906861705,0.16481898,3105.9,3104.9,1.21817032]
[1768906861906,0.3109359,3105.9,3104.6,4.01933315]
[1768906862212,0.3109359,3105.9,3104.5,5.37416481]
[1768906862506,0.16114,3105.8,3104.5,5.37416481]
[1768906863008,0.16114,3105.8,3104.6,4.01933315]
[1768906864511,0.16114,3105.8,3104.8,1.21817032]
[1768906866005,0.16114,3105.8,3104.8,1.35483166]
[1768906866208,0.00368898,3105.9,3105.1,1.21817032]
[1768906866408,0.00368898,3105.9,3105.4,1.21817032]
[1768906866612,0.16111,3106.4,3105.4,1.22076552]
[1768906867205,0.14611692,3107.0,3106.0,1.21817032]
[1768906867707,0.14938031,3107.0,3105.7,1.21817032]
[1768906868611,0.31046031,3107.0,3105.7,1.21817032]
[1768906872417,0.31046031,3107.0,3106.0,1.21817032]
[1768906872613,0.16434339,3107.0,3106.0,1.21817032]
[1768906875722,0.00326339,3107.0,3106.3,1.21817032]
[1768906876216,0.14611692,3107.8,3106.3,1.21817032]
[1768906876420,0.14611692,3107.8,3106.6,1.21817032]
[1768906877319,0.14908698,3107.8,3106.6,1.21817032]
[1768906878815,0.14908698,3107.8,3106.4,1.21817032]
[1768906880316,0.31011698,3107.8,3106.1,0.00154744]
[1768906880512,1.37921032,3107.7,3106.2,1.21817032]
[1768906880820,0.14611692,3107.6,3106.2,1.21817032]
[1768906882313,0.14611692,3107.2,3105.8,14.9]
[1768906882514,0.14611692,3107.2,3105.7,1.21817032]
[1768906883017,0.14611692,3107.2,3105.7,16.11817032]
[1768906883218,0.14611692,3107.2,3105.7,14.9]
[1768906883411,0.14611692,3107.2,3105.9,1.21817032]
[1768906883613,0.30718692,3107.2,3105.4,0.0025952]
[1768906883926,1.36107915,3106.9,3105.4,0.0025952]
[1768906884222,1.36107915,3106.9,3105.6,1.21817032]
[1768906884423,1.36107915,3106.9,3105.4,0.0025952]
[1768906884628,0.14290883,3106.8,3105.4,0.0025952]
[1768906884820,1.21817032,3107.5,3105.4,0.0025952]
[1768906884821,1.21817032,3106.2,3105.4,0.0025952]
[1768906886220,0.14290883,3106.3,3105.4,0.0025952]
[1768906887128,0.16111,3106.4,3105.4,0.0025952]
[1768906887316,0.14290883,3106.7,3105.4,0.0025952]
[1768906889727,1.21817032,3106.6,3105.4,0.0025952]
[1768906889926,0.14290883,3106.5,3105.4,0.0025952]
[1768906892427,0.16109,3106.7,3105.4,0.0025952]
[1768906892926,1.21801965,3107.5,3105.4,0.0025952]
[1768906892927,0.16106,3107.2,3105.4,0.00751876]
[1768906893125,0.16107,3107.1,3105.4,0.00751876]
[1768906893319,0.30397883,3107.1,3105.4,0.00751876]
[1768906893519,0.16107,3107.1,3105.5,0.00489449]
[1768906893723,0.14290883,3107.5,3105.4,0.0025952]
[1768906893724,0.14290883,3107.5,3105.8,0.00489449]
[1768906895634,0.14290883,3107.5,3105.8,4.02422764]
[1768906897336,0.14290883,3107.5,3105.8,6.46222764]
[1768906898335,0.14290883,3107.5,3105.9,0.00765361]
[1768906899434,0.00297006,3107.8,3106.0,0.00723811]
[1768906900236,0.00297006,3107.8,3106.2,0.00723811]
[1768906905043,0.14609853,3107.8,3106.2,0.00723811]
[1768906905735,0.14609853,3107.8,3106.3,2.441]
[1768906907838,0.14609853,3107.8,3106.1,2.442]
[1768906908839,0.14609853,3107.8,3106.0,15.06113]
[1768906909047,0.14312847,3107.7,3106.1,2.443]
[1768906909938,0.14312847,3107.7,3106.0,15.06113]
[1768906910146,0.14312847,3107.7,3106.1,2.443]
[1768906910933,0.14312847,3107.6,3106.1,2.443]
[1768906911143,0.14312847,3107.5,3106.0,0.16113]
[1768906911345,0.14312847,3107.5,3106.1,2.444]
[1768906912246,0.14312847,3107.4,3106.1,2.444]
[1768906912650,0.14312847,3107.2,3105.9,2.444]
[1768906913944,0.14312847,3107.2,3105.5,4.01933315]
[1768906914150,0.14312847,3107.2,3105.6,2.444]
[1768906915151,0.30419847,3107.2,3105.5,4.02828504]
[1768906915351,0.30419847,3107.2,3105.6,2.444]
[1768906915947,0.30419847,3107.2,3105.7,0.00885032]
[1768906916143,0.16107,3107.2,3105.7,0.00885032]
[1768906917651,0.3027326,3107.2,3105.7,0.00885032]
[1768906917854,0.1416626,3107.5,3105.7,0.00885032]
[1768906918243,0.1416626,3107.5,3105.9,0.00893003]
[1768906918450,0.16104,3107.7,3106.0,0.00893002]
[1768906920451,0.16104,3107.7,3106.1,0.00855402]
[1768906920653,0.3027026,3107.7,3106.1,0.00855402]
[1768906921554,0.1416626,3107.6,3106.1,0.00855402]
[1768906922453,0.1416626,3107.6,3106.1,4.02788717]
[1768906922853,0.1416626,3107.6,3106.1,4.01933315]
[1768906923049,0.1416626,3107.6,3106.2,2.444]
[1768906923243,0.1416626,3107.6,3106.2,4.01933315]
[1768906925358,0.1416626,3107.6,3106.1,1.37913965]
[1768906925359,0.00297006,3107.8,3106.3,4.02802418]
[1768906925662,0.00297006,3107.8,3106.4,0.00844171]
[1768906926157,0.00297006,3107.8,3106.5,1.21801965]
[1768906926950,0.00297006,3107.8,3106.5,5.2373528]
[1768906927449,0.00297006,3107.8,3106.5,5.24676775]
[1768906928060,0.00297006,3107.8,3106.6,4.01933315]
[1768906928357,0.00297006,3107.8,3106.7,0.00941494]
[1768906929262,0.00297006,3107.8,3106.8,4.01933315]
[1768906929854,0.00297006,3107.8,3106.8,6.46133315]
[1768906931760,0.00297006,3107.8,3106.8,6.47303267]
[1768906932357,0.00297006,3107.8,3106.9,0.01169952]
[1768906936266,0.16099,3108.7,3106.9,0.01169952]
[1768906936465,0.3026526,3108.7,3106.9,1.22971917]
[1768906936765,0.3026526,3108.7,3107.0,0.01163983]
[1768906937066,0.30588631,3108.7,3107.0,0.01163983]
[1768906937565,0.14489631,3108.7,3107.1,0.011666]
[1768906939766,0.14489631,3108.7,3107.4,0.01083694]
[1768906939767,0.00323371,3108.7,3107.4,0.01083694]
[1768906939965,0.00323371,3108.7,3107.5,2.453]
[1768906940465,0.14489631,3108.7,3107.1,4.01933315]
[1768906940766,0.1416626,3108.6,3107.2,2.453]
[1768906941763,0.16422371,3108.7,3106.7,14.9]
[1768906941764,0.1416626,3108.5,3106.7,14.9]
[1768906941970,0.1416626,3108.2,3106.8,2.453]
[1768906942665,0.1416626,3108.2,3106.9,2.453]
[1768906942863,0.1416626,3108.2,3106.7,2.453]
[1768906943271,0.14004902,3108.1,3106.7,2.453]
[1768906944061,0.14004902,3108.1,3106.6,2.453]
[1768906944263,0.14004902,3108.1,3106.3,18.91933315]
[1768906944565,0.14004902,3108.1,3106.4,2.453]
[1768906944766,0.14004902,3107.9,3106.2,4.01933315]
[1768906944963,0.14004902,3107.9,3106.2,6.47233315]
[1768906945269,0.14004902,3107.7,3106.2,2.453]
[1768906945660,0.14004902,3107.7,3105.9,18.91933315]
[1768906945869,0.14004902,3107.7,3106.0,2.454]
[1768906947165,0.14004902,3107.7,3106.0,0.00760536]
[1768906947371,0.14004902,3107.7,3106.1,2.455]
[1768906948363,0.14004902,3107.7,3106.1,2.47348908]
[1768906949868,0.30108902,3107.7,3106.1,2.47348908]
[1768906950168,0.30108902,3107.7,3106.1,0.01848908]
[1768906950369,0.30108902,3107.7,3106.2,2.457]
[1768906950370,0.16104,3107.6,3106.2,2.457]
[1768906951468,0.16104,3107.6,3106.2,2.47747227]
[1768906952770,0.14004902,3108.1,3106.3,0.02056564]
[1768906952963,0.16102,3108.0,3106.8,1.21668333]
[1768906954671,0.16103,3107.9,3106.6,0.02056564]
[1768906954870,1.35673235,3107.8,3106.5,2.458]
[1768906955172,0.14004902,3107.8,3106.5,2.458]
[1768906955372,0.14004902,3107.8,3106.2,1.3976106]
[1768906955572,0.14004902,3107.8,3106.3,2.458]
[1768906955967,0.16105,3107.6,3106.3,2.458]
[1768906957574,0.16105,3107.5,3106.2,2.47881727]
[1768906958075,0.16105,3107.5,3106.3,1.21668333]
[1768906959575,0.14004902,3107.8,3106.6,1.21668333]
[1768906960872,0.16102,3108.0,3106.6,1.21668333]
[1768906961875,0.16102,3108.0,3106.7,0.01932147]
[1768906965781,0.29877839,3108.0,3106.5,1.21668333]
[1768906966888,0.29877839,3108.0,3106.5,1.23690595]
[1768906967488,2.89307804,3109.5,3106.1,6.47833315]
[1768906967489,0.13775839,3109.1,3106.1,6.47833315]
[1768906967682,0.29872839,3109.1,3107.0,0.16107]
[1768906967986,1.37765333,3109.0,3107.4,1.21668333]
[1768906969989,0.16097,3109.0,3107.7,1.21668333]
[1768906970290,0.16097,3109.0,3107.7,1.21998083]
[1768906970990,0.13775839,3109.1,3107.7,1.21998083]
[1768906970991,0.13775839,3109.5,3108.0,1.21668333]
[1768906971189,0.13775839,3109.5,3108.3,1.21668333]
[1768906971385,0.29870839,3109.5,3108.3,1.21668333]
[1768906972089,0.30153761,3109.5,3108.3,1.21668333]
[1768906973191,0.30153761,3109.5,3107.7,0.0032975]
[1768906973489,0.30153761,3109.5,3108.1,1.21668333]
[1768906974292,0.30153761,3109.5,3107.7,0.0032975]
[1768906974595,0.30153761,3109.5,3108.1,1.21668333]
[1768906976896,0.30153761,3109.5,3108.4,1.21668333]
[1768906976897,0.16377922,3109.5,3108.4,1.21668333]
[1768906979803,0.16377922,3109.5,3107.8,0.16103]
[1768906980003,0.16377922,3109.5,3108.4,1.21668333]
[1768906982000,0.16377922,3109.5,3107.7,0.0032975]
[1768906982001,0.16096,3109.2,3107.7,0.0032975]
[1768906982206,0.16096,3109.2,3108.0,1.21668333]
[1768906983208,0.13826851,3109.4,3108.0,1.21668333]
[1768906984105,0.13826851,3108.8,3107.7,0.0032975]
[1768906984304,0.16099,3108.7,3107.7,0.0032975]
[1768906985608,0.16099,3108.6,3107.7,0.0032975]
[1768906986009,0.161,3108.5,3107.7,0.0032975]
[1768906989309,0.161,3108.5,3106.9,14.9]
[1768906989310,0.16101,3108.2,3106.9,14.9]
[1768906989509,0.16101,3108.2,3107.6,1.21668333]
[1768906989815,0.16101,3108.2,3106.4,3.66768333]
[1768906989816,0.16101,3108.2,3107.4,1.21668333]
[1768906990021,0.16101,3108.2,3107.1,1.21668333]
[1768906990217,0.16101,3108.2,3106.6,0.16109]
[1768906990415,0.16101,3108.2,3106.9,1.21668333]
[1768906991624,0.16101,3108.2,3107.2,1.21668333]
[1768906995519,0.16101,3108.2,3107.0,1.21668333]
[1768906999320,0.29928851,3108.1,3106.7,1.21668333]
[1768906999723,0.29928851,3108.1,3106.6,0.0031025]
[1768906999724,1.21668333,3107.9,3106.6,0.0031025]
[1768906999911,0.16103,3108.0,3106.7,1.21668333]
[1768907000425,0.16103,3108.0,3107.0,1.21668333]
[1768907001724,0.16103,3108.0,3106.9,1.21668333]
[1768907003932,0.16103,3108.0,3106.7,1.21668333]
[1768907005227,0.16103,3108.0,3106.6,0.0031025]
[1768907005427,0.16103,3108.0,3106.8,1.21668333]
[1768907006424,0.16103,3108.0,3106.6,0.0031025]
[1768907006629,0.16103,3108.0,3106.8,1.21668333]
[1768907009629,0.16103,3108.0,3106.6,0.0031025]
[1768907009823,0.16103,3108.0,3106.8,1.21668333]
[1768907010225,0.16103,3108.0,3106.6,0.0031025]
[1768907010425,0.16103,3108.0,3106.7,1.21668333]
[1768907011636,0.16103,3108.0,3106.6,0.0031025]
[1768907011835,0.16103,3107.9,3106.6,0.0031025]
[1768907012026,0.14028136,3107.8,3106.6,0.0031025]
[1768907013235,0.30131136,3107.8,3106.6,0.0031025]
[1768907016445,0.16103,3107.8,3106.6,0.0031025]
[1768907020142,0.14028136,3108.2,3106.6,0.0031025]
[1768907022442,0.14028136,3108.1,3106.6,0.0031025]
[1768907028042,0.30130136,3108.1,3106.6,0.0031025]
[1768907028250,0.1335965,3108.0,3106.6,0.0031025]
[1768907028449,0.1335965,3107.9,3106.6,0.0031025]
[1768907028745,3.221,3108.5,3106.2,4.01933315]
[1768907028746,0.16105,3107.6,3106.2,4.01933315]
[1768907029048,0.1335965,3107.5,3105.7,0.16114]
[1768907029434,0.1335965,3107.5,3105.7,4.18047315]
[1768907029844,0.1335965,3107.5,3105.7,4.18302236]
[1768907030246,0.1335965,3107.5,3105.7,0.16368921]
[1768907031238,0.1335965,3107.5,3105.9,1.21694752]
[1768907035544,0.1335965,3107.5,3106.0,4.01933315]
[1768907037445,1.792,3108.2,3106.0,4.01933315]
[1768907037446,0.14256253,3108.4,3106.9,1.21694752]
[1768907037851,0.14256253,3108.4,3106.6,4.01933315]
[1768907038055,0.14256253,3108.4,3106.5,1.21694752]
[1768907040651,0.30357253,3108.4,3106.5,1.21694752]
[1768907040956,0.30357253,3108.3,3106.5,1.21694752]
[1768907041259,0.14256253,3108.2,3106.5,1.21694752]
[1768907045562,0.14256253,3108.1,3106.3,0.16111]
[1768907045860,0.14256253,3108.1,3106.3,2.60611]
[1768907047649,0.14256253,3108.1,3106.5,4.01933315]
[1768907049954,0.16101,3108.2,3106.5,4.01933315]
[1768907050163,0.16102,3108.1,3106.5,4.01933315]
[1768907057167,0.14256253,3108.5,3106.5,5.39738067]
[1768907057667,0.14256253,3108.5,3106.6,18.91933315]
[1768907057868,0.14256253,3108.5,3106.6,19.08042315]
[1768907058269,0.30356253,3108.5,3106.6,19.08042315]
[1768907059074,3.221,3109.0,3106.6,19.08042315]
[1768907059075,0.14256253,3108.9,3106.9,1.21694752]
[1768907059369,0.14256253,3108.9,3107.1,4.01933315]
[1768907060375,0.14256253,3108.9,3107.2,1.21694752]
[1768907060859,0.14256253,3108.9,3107.2,5.23628067]
[1768907062774,0.14256253,3108.9,3107.3,4.01933315]
[1768907063764,0.16097,3109.1,3107.3,4.01933315]
[1768907064777,0.00282922,3109.5,3107.2,1.21694752]
[1768907064778,0.00282922,3109.5,3107.6,1.21694752]
[1768907064966,0.00282922,3109.5,3107.7,2.443]
[1768907065167,0.14563962,3109.5,3107.8,14.9]
[1768907065666,0.14563962,3109.5,3107.8,15.06103]
[1768907067970,0.1428104,3109.4,3107.9,2.444]
[1768907068176,0.1428104,3109.4,3107.9,2.4481569]
[1768907068478,0.3037704,3109.3,3107.9,0.0041569]
[1768907068667,0.1428104,3109.2,3107.9,0.0041569]
[1768907069069,0.3037704,3109.2,3107.9,0.0041569]
[1768907069373,0.1428104,3109.1,3107.9,0.0041569]
[1768907072480,0.16096,3109.2,3107.9,0.0041569]
[1768907073375,0.14563962,3109.5,3107.9,0.0041569]
[1768907074569,0.30658962,3109.5,3107.9,0.0041569]
[1768907074770,0.3037604,3109.4,3107.9,0.0041569]
[1768907074977,0.3037604,3109.4,3108.0,1.21576212]
[1768907076179,0.1428104,3109.3,3108.0,1.21576212]
[1768907080688,0.16095,3109.4,3108.0,1.21576212]
[1768907080985,0.16095,3109.4,3108.3,1.21576212]
[1768907081377,0.00282922,3109.5,3108.3,1.21576212]
[1768907082292,0.00282922,3109.5,3108.6,1.21576212]
[1768907083884,0.00282922,3109.5,3108.6,1.37675212]
[1768907084090,0.16091,3110.3,3109.2,1.21576212]
[1768907084289,0.16091,3110.3,3108.6,1.37675212]
[1768907084290,0.16091,3110.3,3108.9,1.21576212]
[1768907084690,0.30037675,3110.3,3109.0,1.21576212]
[1768907084988,0.30415575,3110.3,3109.0,1.21576212]
[1768907086387,0.30415575,3110.3,3108.9,1.21576212]
[1768907087291,1.37667212,3110.1,3108.4,4.01933315]
[1768907087489,0.30037675,3110.1,3108.6,1.21576212]
[1768907087692,0.65056041,3110.4,3108.6,1.21576212]
[1768907087881,0.65056041,3110.4,3108.5,19.04363387]
[1768907087882,0.65056041,3110.4,3109.3,1.21576212]
[1768907088085,0.65056041,3110.4,3109.0,1.21576212]
[1768907088280,0.79002716,3110.4,3108.7,4.01933315]
[1768907088487,2.00578928,3110.4,3108.8,1.21576212]
[1768907088794,2.00853055,3110.4,3108.8,1.21576212]
[1768907088987,0.79276843,3110.4,3108.8,1.21576212]
[1768907089386,0.95366843,3110.4,3108.8,1.21576212]
[1768907089591,0.30037675,3110.3,3108.8,1.21576212]
[1768907090894,0.13946675,3110.2,3108.6,2.438]